fUST/lending_fUST_20250707
["ID","MTS","AMOUNT","RATE_DAILY","PERIOD"]
[370096484,1751878333525,-744.3,0.00022347,2]
[370096485,1751878333534,-1626.87,0.00022349,2]
[370096486,1751878333544,-1041.83,0.00022349,2]
[370096487,1751878333554,-258.37197734,0.00022349,2]
[370096488,1751878333564,-1219.94,0.00022349,2]
[370096489,1751878333574,-11783.72,0.00022349,2]
[370096490,1751878333583,-516.28,0.00022349,2]
[370096491,1751878333593,-1126.4,0.00022349,2]
[370096492,1751878333603,-3083.89,0.00022349,2]
[370096493,1751878333613,-746.91,0.00022349,2]
[370096494,1751878333623,-1051.67,0.00022349,2]
[370096495,1751878333633,-467.28,0.00022448,2]
[370096496,1751878333643,-1466.61,0.00022448,2]
[370096497,1751878333653,-1693.65,0.00022448,2]
[370096498,1751878333662,-511.73,0.00022448,2]
[370096499,1751878333672,-5131.36,0.00022448,2]
[370096500,1751878333682,-927.78,0.00022448,2]
[370096501,1751878333691,-2375.1,0.00022448,2]
[370096502,1751878333701,-4148.36,0.00022448,2]
[370096503,1751878333710,-324.87,0.00022448,2]
[370096504,1751878333720,-1006.41,0.00022448,2]
[370096505,1751878333730,-9521.95,0.00022448,2]
[370096506,1751878333741,-2677.89,0.00022448,2]
[370096507,1751878333751,-927.92,0.00022448,2]
[370096508,1751878333762,-590.05,0.00022449,2]
[370096509,1751878333773,-642.41,0.00022449,2]
[370096510,1751878333783,-1814.25,0.00022449,2]
[370096511,1751878333793,-780.98,0.00022449,2]
[370096512,1751878333802,-739.46,0.00022449,2]
[370096513,1751878333812,-1473.58,0.00022449,2]
[370096514,1751878333823,-537.97,0.00022449,2]
[370096515,1751878333839,-474.52,0.00022449,2]
[370096516,1751878333848,-515.18,0.00022449,2]
[370096517,1751878333858,-463.45,0.00022449,2]
[370096518,1751878333869,-569.19,0.00022449,2]
[370096519,1751878333879,-474.81,0.00022449,2]
[370096520,1751878333888,-590.63,0.00022449,2]
[370096521,1751878333897,-517.21,0.00022449,2]
[370096522,1751878333907,-600.59,0.00022449,2]
[370096523,1751878333917,-460.14,0.00022449,2]
[370096524,1751878333926,-460.0,0.00022449,2]
[370096525,1751878333936,-503.25,0.00022449,2]
[370096526,1751878333945,-1790.38,0.00022449,2]
[370096527,1751878333954,-1020.84,0.00022449,2]
[370096528,1751878333963,-628.75,0.00022449,2]
[370096529,1751878333974,-724.26,0.00022449,2]
[370096530,1751878333984,-599.29,0.00022449,2]
[370096531,1751878333994,-618.64,0.00022449,2]
[370096532,1751878334003,-736.7,0.00022449,2]
[370096533,1751878334019,-513.26,0.00022449,2]
[370096534,1751878334035,-2101.7,0.00022449,2]
[370096535,1751878334049,-701.27,0.00022449,2]
[370096536,1751878334061,-501.61,0.00022449,2]
[370096537,1751878334076,-621.18,0.00022449,2]
[370096538,1751878334096,-460.0,0.00022449,2]
[370096539,1751878334111,-1588.08,0.00022449,2]
[370096540,1751878334125,-1502.2,0.00022449,2]
[370096541,1751878334140,-603.3,0.00022449,2]
[370096542,1751878334155,-645.22,0.00022449,2]
[370096543,1751878334168,-802.16,0.00022449,2]
[370096544,1751878334184,-582.95,0.00022449,2]
[370096545,1751878334198,-518.66,0.00022449,2]
[370096546,1751878334213,-461.06,0.00022449,2]
[370096547,1751878334226,-882.2,0.00022449,2]
[370096548,1751878334238,-176.82,0.00022449,2]
[370096549,1751878334252,-466.33,0.00022449,2]
[370096550,1751878334264,-811.29,0.00022449,2]
[370096551,1751878334280,-600.61,0.00022452,2]
[370096552,1751878334294,-336.62285108,0.00022454,2]
[370096553,1751878334308,-579.14,0.00022454,2]
[370096554,1751878334323,-460.0,0.00022454,2]
[370096555,1751878334342,-1820.82,0.00022454,2]
[370096556,1751878334353,-460.0,0.00022454,2]
[370096557,1751878334365,-697.17,0.00022454,2]
[370096558,1751878334378,-584.48,0.00022454,2]
[370096559,1751878334395,-686.19,0.00022454,2]
[370096560,1751878334411,-891.26,0.00022454,2]
[370096561,1751878334424,-597.07,0.00022454,2]
[370096562,1751878334438,-511.02,0.00022454,2]
[370096563,1751878334458,-461.69,0.00022454,2]
[370096564,1751878334471,-471.66672409,0.00022454,2]
[370096565,1751878334484,-299.0,0.00022471,5]
[370096566,1751878334506,-5000.0,0.00022479,2]
[370096567,1751878334521,-1680.07552712,0.00022486,7]
[370096568,1751878334538,-130467.78417314,0.0002249,7]
[370096569,1751878334553,-189.64653,0.0002249,7]
[370096570,1751878334570,-189.64653,0.0002249,7]
[370096571,1751878334588,-211.911253,0.0002249,7]
[370096572,1751878334605,-211.911253,0.0002249,7]
[370096573,1751878334619,-1005.08652503,0.000225,2]
[370096574,1751878334634,-165.456041,0.00022505,2]
[370096575,1751878334650,-366.6942869,0.00022521,2]
[370096576,1751878334665,-300.0,0.00022521,2]
[370096577,1751878334679,-250.0,0.00022521,2]
[370096578,1751878334694,-63339.999999,0.0002259,7]
[370096579,1751878334708,-211.885957,0.0002259,7]
[370096580,1751878334721,-211.885958,0.0002259,7]
[370096581,1751878334736,-203.424781,0.0002259,7]
[370096582,1751878334749,-857.698891,0.0002259,7]
[370096583,1751878334763,-203.424783,0.0002259,7]
[370096584,1751878334776,-857.698891,0.0002259,7]
[370096585,1751878334788,-151.0,0.0002259,7]
[370096586,1751878334802,-251.765691,0.0002259,7]
[370096587,1751878334814,-251.765692,0.0002259,7]
[370096588,1751878334828,-1152.046431,0.0002259,7]
[370096589,1751878334843,-1152.046429,0.0002259,7]
[370096590,1751878334857,-159.075144,0.0002259,7]
[370096591,1751878334870,-320.333785,0.0002259,7]
[370096592,1751878334883,-320.333779,0.0002259,7]
[370096593,1751878334896,-812.794636,0.00022603,2]
[370096594,1751878334909,-634.64,0.00022613,2]
[370096595,1751878334923,-578.27,0.00022613,2]
[370096596,1751878334937,-714.52,0.00022613,2]
[370096597,1751878334950,-3372.58,0.00022613,2]
[370096598,1751878334963,-557.47,0.00022613,2]
[370096599,1751878334976,-476.15,0.00022613,2]
[370096600,1751878334989,-5018.54,0.00022618,2]
[370096601,1751878335002,-473.43,0.00022618,2]
[370096602,1751878335016,-877.49,0.00022618,2]
[370096603,1751878335030,-978.43,0.00022618,2]
[370096604,1751878335043,-4865.84,0.00022618,2]
[370096605,1751878335056,-8429.87,0.00022618,2]
[370096606,1751878335069,-1078.12,0.00022618,2]
[370096607,1751878335082,-814.88,0.00022618,2]
[370096608,1751878335095,-1523.08,0.00022618,2]
[370096609,1751878335107,-460.0,0.00022618,2]
[370096610,1751878335120,-758.47,0.00022619,2]
[370096611,1751878335133,-648.63,0.00022619,2]
[370096612,1751878335146,-4741.33,0.00022619,2]
[370096613,1751878335160,-815.67,0.00022619,2]
[370096614,1751878335172,-4342.85,0.00022619,2]
[370096615,1751878335185,-1322.28,0.00022619,2]
[370096616,1751878335199,-978.47,0.0002262,2]
[370096617,1751878335211,-1929.95,0.0002262,2]
[370096618,1751878335224,-479.04,0.0002262,2]
[370096619,1751878335236,-961.6,0.0002262,2]
[370096620,1751878335247,-1232.5,0.0002262,2]
[370096621,1751878335258,-2371.65,0.0002262,2]
[370096622,1751878335270,-1116.74,0.0002262,2]
[370096623,1751878335281,-4190.5,0.0002262,2]
[370096624,1751878335293,-504.54,0.00022621,2]
[370096625,1751878335304,-220.62,0.00022621,2]
[370096626,1751878335316,-813.31,0.00022621,2]
[370096627,1751878335328,-460.0,0.00022621,2]
[370096628,1751878335340,-696.66,0.00022621,2]
[370096629,1751878335352,-642.4,0.00022621,2]
[370096630,1751878335364,-989.64,0.00022621,2]
[370096631,1751878335375,-591.78,0.00022621,2]
[370096632,1751878335387,-460.0,0.00022621,2]
[370096633,1751878335398,-549.97,0.00022621,2]
[370096634,1751878335412,-668.91,0.00022621,2]
[370096635,1751878335424,-1175.75,0.00022621,2]
[370096636,1751878335436,-264.56,0.00022621,2]
[370096637,1751878335448,-575.32,0.00022621,2]
[370096638,1751878335460,-501.04,0.00022621,2]
[370096639,1751878335471,-279.59,0.00022621,2]
[370096640,1751878335483,-1816.74,0.00022621,2]
[370096641,1751878335494,-627.71,0.00022621,2]
[370096642,1751878335506,-1190.73,0.00022621,2]
[370096643,1751878335518,-1436.76,0.00022621,2]
[370096644,1751878335528,-460.0,0.00022621,2]
[370096645,1751878335540,-744.3,0.00022621,2]
[370096646,1751878335552,-1626.87,0.00022623,2]
[370096647,1751878335564,-1041.83,0.00022623,2]
[370096648,1751878335574,-1219.94,0.00022623,2]
[370096649,1751878335586,-11783.72,0.00022623,2]
[370096650,1751878335597,-516.28,0.00022623,2]
[370096651,1751878335609,-1126.4,0.00022623,2]
[370096652,1751878335620,-3083.89,0.00022623,2]
[370096653,1751878335632,-746.91,0.00022623,2]
[370096654,1751878335643,-1051.67,0.00022623,2]
[370096655,1751878335655,-808.07560296,0.0002266,2]
[370096656,1751878335665,-192.76463,0.00022692,7]
[370096657,1751878335677,-160.0,0.000227,7]
[370096658,1751878335687,-7880.90807545,0.00022707,2]
[370096659,1751878335698,-467.28,0.00022722,2]
[370096660,1751878335709,-1466.61,0.00022722,2]
[370096661,1751878335720,-1693.65,0.00022722,2]
[370096662,1751878335732,-511.73,0.00022722,2]
[370096663,1751878335744,-5131.36,0.00022722,2]
[370096664,1751878335755,-927.78,0.00022722,2]
[370096665,1751878335765,-2375.1,0.00022722,2]
[370096666,1751878335776,-4148.36,0.00022722,2]
[370096667,1751878335787,-1006.41,0.00022722,2]
[370096668,1751878335798,-9521.95,0.00022722,2]
[370096669,1751878335810,-2677.89,0.00022722,2]
[370096670,1751878335820,-927.92,0.00022722,2]
[370096671,1751878335833,-590.05,0.00022723,2]
[370096672,1751878335845,-642.41,0.00022723,2]
[370096673,1751878335856,-1814.25,0.00022723,2]
[370096674,1751878335867,-780.98,0.00022723,2]
[370096675,1751878335880,-739.46,0.00022723,2]
[370096676,1751878335892,-1473.58,0.00022723,2]
[370096677,1751878335903,-537.97,0.00022723,2]
[370096678,1751878335914,-474.52,0.00022723,2]
[370096679,1751878335926,-515.18,0.00022723,2]
[370096680,1751878335936,-463.45,0.00022723,2]
[370096681,1751878335948,-569.19,0.00022723,2]
[370096682,1751878335959,-474.81,0.00022723,2]
[370096683,1751878335971,-590.63,0.00022723,2]
[370096684,1751878335983,-517.21,0.00022723,2]
[370096685,1751878335994,-600.59,0.00022723,2]
[370096686,1751878336006,-460.14,0.00022723,2]
[370096687,1751878336018,-461.57923151,0.00022723,2]
[370096688,1751878336029,-503.25,0.00022723,2]
[370096689,1751878336041,-1790.38,0.00022723,2]
[370096690,1751878336052,-1020.84,0.00022723,2]
[370096691,1751878336064,-628.75,0.00022723,2]
[370096692,1751878336076,-724.26,0.00022723,2]
[370096693,1751878336088,-599.29,0.00022723,2]
[370096694,1751878336100,-618.64,0.00022723,2]
[370096695,1751878336111,-736.7,0.00022723,2]
[370096696,1751878336123,-513.26,0.00022723,2]
[370096697,1751878336135,-2101.7,0.00022723,2]
[370096698,1751878336147,-701.27,0.00022723,2]
[370096699,1751878336159,-501.61,0.00022723,2]
[370096700,1751878336171,-621.18,0.00022723,2]
[370096701,1751878336182,-579.92,0.00022723,2]
[370096702,1751878336195,-1588.08,0.00022723,2]
[370096703,1751878336207,-1502.2,0.00022723,2]
[370096704,1751878336218,-603.3,0.00022723,2]
[370096705,1751878336229,-645.22,0.00022723,2]
[370096706,1751878336240,-802.16,0.00022723,2]
[370096707,1751878336251,-582.95,0.00022723,2]
[370096708,1751878336262,-518.66,0.00022723,2]
[370096709,1751878336273,-461.06,0.00022723,2]
[370096710,1751878336285,-882.2,0.00022723,2]
[370096711,1751878336297,-466.33,0.00022723,2]
[370096712,1751878336308,-811.29,0.00022723,2]
[370096713,1751878336319,-600.61,0.00022726,2]
[370096714,1751878336330,-302.740728,0.00022726,7]
[370096715,1751878336342,-302.740732,0.00022726,7]
[370096716,1751878336353,-277.861526,0.00022726,7]
[370096717,1751878336363,-277.861526,0.00022726,7]
[370096718,1751878336375,-172.762535,0.00022726,7]
[370096719,1751878336386,-172.762535,0.00022726,7]
[370096720,1751878336397,-151.0,0.00022728,7]
[370096721,1751878336408,-211.594033,0.00022728,7]
[370096722,1751878336419,-579.14,0.00022728,2]
[370096723,1751878336429,-460.39336776,0.00022728,2]
[370096724,1751878336441,-1820.82,0.00022728,2]
[370096725,1751878336453,-543.06555588,0.00022728,2]
[370096726,1751878336465,-697.17,0.00022728,2]
[370096727,1751878336477,-584.48,0.00022728,2]
[370096728,1751878336488,-686.19,0.00022728,2]
[370096729,1751878336500,-891.26,0.00022728,2]
[370096730,1751878336511,-597.07,0.00022728,2]
[370096731,1751878336524,-511.02,0.00022728,2]
[370096732,1751878336535,-461.69,0.00022728,2]
[370096733,1751878336547,-2205.95,0.00022764,7]
[370096734,1751878336558,-1038.00452864,0.0002277,2]
[370096735,1751878336569,-1680.07552712,0.00022797,7]
[370096736,1751878336580,-4078.32,0.000228,7]
[370096737,1751878336592,-300.0,0.00022802,2]
[370096738,1751878336603,-178.623899,0.00022829,7]
[370096739,1751878336614,-178.623899,0.00022829,7]
[370096740,1751878336626,-733.470814,0.00022829,7]
[370096741,1751878336637,-151.0,0.00022829,7]
[370096742,1751878336648,-151.0,0.00022829,7]
[370096743,1751878336658,-151.0,0.00022829,7]
[370096744,1751878336669,-503.491747,0.00022829,7]
[370096745,1751878336680,-503.491747,0.00022829,7]
[370096746,1751878336692,-161.842147,0.00022829,7]
[370096747,1751878336703,-273.721132,0.00022829,7]
[370096748,1751878336714,-273.721132,0.00022829,7]
[370096749,1751878336726,-158.55,0.00022829,7]
[370096750,1751878336737,-158.55,0.00022829,7]
[370096751,1751878336750,-299.0,0.00022832,6]
[370096752,1751878336761,-2205.95,0.00022864,4]
[370096753,1751878336774,-634.8238612,0.00022887,2]
[370096754,1751878336787,-578.48,0.00022887,2]
[370096755,1751878336801,-714.71041313,0.00022887,2]
[370096756,1751878336812,-3372.61,0.00022887,2]
[370096757,1751878336824,-557.53,0.00022887,2]
[370096758,1751878336839,-476.26634784,0.00022887,2]
[370096759,1751878336850,-5018.7,0.00022892,2]
[370096760,1751878336864,-473.56788172,0.00022892,2]
[370096761,1751878336877,-877.65193784,0.00022892,2]
[370096762,1751878336889,-978.53032054,0.00022892,2]
[370096763,1751878336900,-4866.04428126,0.00022892,2]
[370096764,1751878336913,-8430.00663465,0.00022892,2]
[370096765,1751878336925,-1078.26852275,0.00022892,2]
[370096766,1751878336936,-815.09,0.00022892,2]
[370096767,1751878336948,-1523.21509374,0.00022892,2]
[370096768,1751878336959,-758.61,0.00022893,2]
[370096769,1751878336971,-978.67447257,0.00022893,2]
[370096770,1751878336983,-648.80285889,0.00022893,2]
[370096771,1751878336994,-1930.13470107,0.00022893,2]
[370096772,1751878337006,-4741.47691578,0.00022893,2]
[370096773,1751878337017,-479.15906764,0.00022893,2]
[370096774,1751878337028,-961.71122356,0.00022893,2]
[370096775,1751878337040,-815.76812079,0.00022893,2]
[370096776,1751878337051,-1232.70061876,0.00022893,2]
[370096777,1751878337064,-2371.77635321,0.00022893,2]
[370096778,1751878337075,-1116.9363657,0.00022893,2]
[370096779,1751878337088,-4190.53,0.00022893,2]
[370096780,1751878337100,-4342.91427617,0.00022893,2]
[370096781,1751878337113,-1322.32,0.00022893,2]
[370096782,1751878337125,-504.69757121,0.00022895,2]
[370096783,1751878337137,-813.4848023,0.00022895,2]
[370096784,1751878337149,-460.0,0.00022895,2]
[370096785,1751878337163,-696.89322702,0.00022895,2]
[370096786,1751878337176,-642.53563548,0.00022895,2]
[370096787,1751878337190,-989.65902532,0.00022895,2]
[370096788,1751878337201,-591.94457842,0.00022895,2]
[370096789,1751878337213,-357.87498647,0.00022895,2]
[370096790,1751878337715,-550.16142013,0.00022895,2]
[370096791,1751878337726,-669.08105163,0.00022895,2]
[370096792,1751878337736,-1175.84,0.00022895,2]
[370096793,1751878337748,-575.51043695,0.00022895,2]
[370096794,1751878337761,-501.24801584,0.00022895,2]
[370096795,1751878337770,-1816.75713167,0.00022895,2]
[370096796,1751878337780,-627.88949468,0.00022895,2]
[370096797,1751878337789,-1190.93630241,0.00022895,2]
[370096798,1751878337798,-1436.99,0.00022895,2]
[370096799,1751878337807,-409.56913167,0.00022895,2]
[370096800,1751878337816,-744.44,0.00022895,2]
[370096801,1751878337826,-1626.92188059,0.00022896,2]
[370096802,1751878337837,-1042.0252821,0.00022896,2]
[370096803,1751878337846,-1220.16795535,0.00022896,2]
[370096804,1751878337856,-11783.92135494,0.00022896,2]
[370096805,1751878337868,-516.28192944,0.00022896,2]
[370096806,1751878337880,-1126.6216944,0.00022896,2]
[370096807,1751878337890,-3083.89,0.00022896,2]
[370096808,1751878337901,-746.95,0.00022896,2]
[370096809,1751878337915,-1051.78,0.00022896,2]
[370096810,1751878337924,-151.0,0.00022919,7]
[370096811,1751878337934,-36993.57936883,0.00022919,2]
[370096812,1751878337945,-309.1156594,0.00022932,2]
[370096813,1751878337956,-153.0,0.00022932,2]
[370096814,1751878337967,-153.0,0.00022932,2]
[370096815,1751878337977,-153.0,0.00022932,2]
[370096816,1751878337987,-153.0,0.00022932,2]
[370096817,1751878337998,-153.0,0.00022932,2]
[370096818,1751878338007,-153.0,0.00022932,2]
[370096819,1751878338017,-153.0,0.00022932,2]
[370096820,1751878338026,-153.0,0.00022932,2]
[370096821,1751878338035,-2205.95,0.00022964,5]
[370096822,1751878338045,-467.37205648,0.00022996,2]
[370096823,1751878338055,-590.05852581,0.00022996,2]
[370096824,1751878338066,-642.63793529,0.00022996,2]
[370096825,1751878338076,-1814.28607007,0.00022996,2]
[370096826,1751878338086,-781.1,0.00022996,2]
[370096827,1751878338096,-739.6,0.00022996,2]
[370096828,1751878338106,-1473.70745145,0.00022996,2]
[370096829,1751878338116,-538.07,0.00022996,2]
[370096830,1751878338126,-474.58053849,0.00022996,2]
[370096831,1751878338135,-515.28581005,0.00022996,2]
[370096832,1751878338144,-463.48471051,0.00022996,2]
[370096833,1751878338155,-569.30490338,0.00022996,2]
[370096834,1751878338165,-475.04286673,0.00022996,2]
[370096835,1751878338174,-590.86081444,0.00022996,2]
[370096836,1751878338185,-517.42942975,0.00022996,2]
[370096837,1751878338195,-600.78609665,0.00022996,2]
[370096838,1751878338204,-460.2704665,0.00022996,2]
[370096839,1751878338215,-503.26979225,0.00022996,2]
[370096840,1751878338224,-1790.40697613,0.00022996,2]
[370096841,1751878338234,-1020.99880585,0.00022996,2]
[370096842,1751878338244,-628.91,0.00022996,2]
[370096843,1751878338254,-724.45317403,0.00022996,2]
[370096844,1751878338263,-1466.69,0.00022996,2]
[370096845,1751878338272,-599.29,0.00022996,2]
[370096846,1751878338282,-618.67009654,0.00022996,2]
[370096847,1751878338292,-1693.73,0.00022996,2]
[370096848,1751878338301,-736.91,0.00022996,2]
[370096849,1751878338311,-513.2840194,0.00022996,2]
[370096850,1751878338320,-511.92,0.00022996,2]
[370096851,1751878338330,-5131.53158375,0.00022996,2]
[370096852,1751878338342,-2101.86657506,0.00022996,2]
[370096853,1751878338352,-701.43637382,0.00022996,2]
[370096854,1751878338362,-501.76,0.00022996,2]
[370096855,1751878338371,-621.31,0.00022996,2]
[370096856,1751878338381,-927.96746967,0.00022996,2]
[370096857,1751878338390,-1588.22,0.00022996,2]
[370096858,1751878338399,-1502.21017031,0.00022996,2]
[370096859,1751878338409,-603.53,0.00022996,2]
[370096860,1751878338418,-2375.32279461,0.00022996,2]
[370096861,1751878338428,-4148.37133444,0.00022996,2]
[370096862,1751878338437,-645.42,0.00022996,2]
[370096863,1751878338447,-1006.5149129,0.00022996,2]
[370096864,1751878338456,-802.34036792,0.00022996,2]
[370096865,1751878338466,-9522.10377952,0.00022996,2]
[370096866,1751878338476,-583.1384055,0.00022996,2]
[370096867,1751878338485,-518.8,0.00022996,2]
[370096868,1751878338496,-461.18334696,0.00022996,2]
[370096869,1751878338505,-882.30893014,0.00022996,2]
[370096870,1751878338515,-2678.01557917,0.00022996,2]
[370096871,1751878338526,-466.51,0.00022996,2]
[370096872,1751878338536,-811.31,0.00022996,2]
[370096873,1751878338545,-927.92,0.00022996,2]
[370096874,1751878338554,-600.81669101,0.00022999,2]
[370096875,1751878338564,-109556.44,0.00023,2]
[370096876,1751878338573,-49039.04,0.00023,7]
[370096877,1751878338583,-312.93,0.00023,7]
[370096878,1751878338593,-160.0,0.00023,2]
[370096879,1751878338602,-189.64653,0.00023002,7]
[370096880,1751878338612,-189.646536,0.00023002,7]
[370096881,1751878338622,-579.37,0.00023002,2]
[370096882,1751878338632,-211.911253,0.00023002,7]
[370096883,1751878338641,-211.911259,0.00023002,7]
[370096884,1751878338651,-1820.98706212,0.00023002,2]
[370096885,1751878338660,-697.21442351,0.00023002,2]
[370096886,1751878338670,-584.54308037,0.00023002,2]
[370096887,1751878338679,-686.3745797,0.00023002,2]
[370096888,1751878338689,-891.33053085,0.00023002,2]
[370096889,1751878338698,-597.27851241,0.00023002,2]
[370096890,1751878338708,-511.24135687,0.00023002,2]
[370096891,1751878338718,-461.70912184,0.00023002,2]
[370096892,1751878338727,-306.0,0.00023014,2]
[370096893,1751878338737,-151.0,0.00023014,7]
[370096894,1751878338747,-151.0,0.00023014,7]
[370096895,1751878338756,-3702.021644,0.00023014,7]
[370096896,1751878338766,-3702.021641,0.00023014,7]
[370096897,1751878338775,-5000.0,0.00023027,2]
[370096898,1751878338784,-2205.95,0.00023064,6]
[370096899,1751878338794,-450.0,0.00023068,2]
[370096900,1751878338804,-327.44715269,0.00023068,2]
[370096901,1751878338814,-157.362823,0.00023102,7]
[370096902,1751878338823,-211.563781,0.00023103,7]
[370096903,1751878338836,-211.563781,0.00023103,7]
[370096904,1751878338845,-151.0,0.00023103,7]
[370096905,1751878338855,-1680.07552712,0.00023107,8]
[370096906,1751878338865,-97699.57,0.00023117,10]
[370096907,1751878338875,-13000.16,0.00023117,10]
[370096908,1751878338885,-2982.22605745,0.00023117,10]
[370096909,1751878339120,-7373.39563043,0.00023117,10]
[370096910,1751878339137,-151.0,0.00019191,2]
[370096911,1751878339147,-166.56185493,0.00023117,10]
[370096912,1751878339159,-24080.43645719,0.00023117,10]
[370096913,1751878339170,-1971.0,0.00023136,2]
[370096914,1751878339180,-2205.95,0.00023164,2]
[370096915,1751878339190,-1971.0,0.00023172,2]
[370096916,1751878339200,-1971.0,0.0002318,2]
[370096917,1751878339211,-299.0,0.00023194,6]
[370096918,1751878339221,-234.572647,0.000232,7]
[370096919,1751878339231,-234.572649,0.000232,7]
[370096920,1751878339241,-185.862515,0.000232,7]
[370096921,1751878339251,-185.86252,0.000232,7]
[370096922,1751878339261,-3640.55,0.000232,7]
[370096923,1751878339271,-535.243736,0.000232,7]
[370096924,1751878339281,-535.243735,0.000232,7]
[370096925,1751878339290,-2205.95,0.00023264,7]
[370096926,1751878339302,-161.50260008,0.0002329,4]
[370096927,1751878339312,-161.50260008,0.0002329,4]
[370096928,1751878339322,-161.50260008,0.0002329,4]
[370096929,1751878339332,-161.5,0.0002329,4]
[370096930,1751878339342,-150.73576007,0.0002329,4]
[370096931,1751878339352,-150.73576007,0.0002329,4]
[370096932,1751878339362,-150.73576007,0.0002329,4]
[370096933,1751878339371,-150.73576007,0.0002329,4]
[370096934,1751878339381,-150.73576007,0.0002329,4]
[370096935,1751878339392,-150.73576007,0.0002329,4]
[370096936,1751878339402,-150.73576007,0.0002329,4]
[370096937,1751878339412,-150.73576007,0.0002329,4]
[370096938,1751878339422,-150.73576007,0.0002329,4]
[370096939,1751878339432,-150.73,0.0002329,4]
[370096940,1751878339441,-163.16488152,0.0002329,4]
[370096941,1751878339451,-163.16,0.0002329,4]
[370096942,1751878339462,-231.28369723,0.00023298,2]
[370096943,1751878339471,-1971.0,0.00023363,2]
[370096944,1751878339481,-2205.95,0.00023364,4]
[370096945,1751878339490,-1680.07552712,0.00023417,9]
[370096946,1751878339502,-2205.95,0.00023464,3]
[370096947,1751878339511,-200.0,0.000235,8]
[370096948,1751878339521,-1971.0,0.00023512,2]
[370096949,1751878339532,-299.0,0.00023555,6]
[370096950,1751878339542,-2205.95,0.00023564,5]
[370096951,1751878339552,-5000.0,0.00023575,2]
[370096952,1751878339561,-1971.0,0.00023591,2]
[370096953,1751878339571,-1971.0,0.00023593,2]
[370096954,1751878339581,-1971.0,0.00023605,2]
[370096955,1751878339590,-7880.90807545,0.00023605,2]
[370096956,1751878339600,-600.0,0.00023616,2]
[370096957,1751878339609,-1971.0,0.00023633,2]
[370096958,1751878339619,-1152.0,0.00023641,2]
[370096959,1751878339628,-2205.95,0.00023664,2]
[370096960,1751878339638,-306.0,0.00023699,2]
[370096961,1751878339647,-857.698891,0.00023709,7]
[370096962,1751878339657,-857.698891,0.00023709,7]
[370096963,1751878339668,-976.561,0.00023709,2]
[370096964,1751878339678,-2153.0,0.00023709,2]
[370096965,1751878339689,-684.067,0.00023709,2]
[370096966,1751878339699,-150.0,0.00023709,2]
[370096967,1751878339708,-500.0,0.00023719,2]
[370096968,1751878339718,-1680.07552712,0.00023728,9]
[370096969,1751878339728,-24835.17,0.00023738,10]
[370096970,1751878339738,-628.08321426,0.00023738,10]
[370096971,1751878340235,344.63249415,0.00016486,2]
[370096972,1751878341018,-283.85756455,0.00016595,2]
[370096973,1751878341030,-2337.88243545,0.00016595,2]
[370096974,1751878341040,-460.0,0.00016695,2]
[370096975,1751878341050,-460.0,0.00016695,2]
[370096976,1751878341059,-592.2,0.000167,2]
[370096977,1751878341069,-592.2,0.000167,2]
[370096978,1751878341078,-592.2,0.000167,2]
[370096979,1751878341087,-439.96998308,0.00016701,2]
[370096980,1751878341099,-152.23001692,0.00016701,2]
[370096981,1751878341110,-592.2,0.00016799,2]
[370096982,1751878341119,-592.2,0.00016799,2]
[370096983,1751878341128,-592.2,0.00016799,2]